Cogmind - Beta 13 @@@ ROGUE MODE // 2024.04.12 @ 02:48:02 Player: xeen Result: Destroyed by H-61 Shepherd with Heavy Assault Cannon Performance ------------- Evolutions (2) 1000 Regions Visited (5) 1000 Robots Destroyed (21) 105 Value Destroyed (792) 792 Prototype IDs (3) 60 Alien Tech Used (0) 0 Bonus (203) 203 TOTAL SCORE: 3160 Bonus ------- High Alert Combat Kills 24 Follower Combat Kills 402 Friendly Fire -223 Cogmind --------- Core Integrity 0/550 Matter 229/300 Energy 89/100 System Corruption 0% Temperature Cool (0) Movement Core (1400) Ox27 Location -8/Materials Parts ------- > --- POWER (1) -------- (None) > --- PROPULSION (4) --- (None) > --- UTILITY (3) ------ Huge Storage Unit Targeting Computer Hacking Suite > --- WEAPON (3) ------- Beam Rifle > --- INVENTORY (25) --- Heavy Ion Engine Heavy Ion Engine Light Treads Terrain Scanner Shield Generator Improved Datajack Peak State ------------ > --- POWER ------------ Heavy Ion Engine > --- PROPULSION ------- Light Treads Light Treads Light Treads Light Treads > --- UTILITY ---------- Huge Storage Unit Hacking Suite Drone Bay > --- WEAPON ----------- Light Assault Rifle Heavy Assault Rifle Assault Cannon > --- INVENTORY -------- Heavy Ion Engine Light Nuclear Core Terrain Scanner Targeting Computer Shield Generator Small Laser Beam Rifle Cooled Pulse Rifle Improved Datajack [Rating: 24] Favorites ----------- Power Ion Engine Engine Ion Engine Power Core Light Nuclear Core Propulsion Light Treads Treads Light Treads Leg Aluminum Leg Hover Unit Cooled Aerolev Unit Utility Small Storage Unit Device Drone Bay Storage Small Storage Unit Processor Targeting Computer Hackware Hacking Suite Protection Light Armor Plating Weapon Medium Laser Energy Gun Medium Laser Ballistic Gun Heavy Assault Rifle Ballistic Cannon Assault Cannon Launcher Rocket Launcher Build | -11 -10 -10 -9 -9 -8 ------- Run | Yrd Mat Min Mat Sto Mat Slots Evolved 4 | . . . 2 . 2 Power . | . . . . . . Propulsion 2 | . . . 2 . . Utility 1 | . . . . . 1 Weapon 1 | . . . . . 1 Parts Attached 38 | 6 4 . 8 10 10 Power 7 | 1 . . 3 2 1 Engine 6 | 1 . . 3 2 . Core 1 | . . . . . 1 Reactor . | . . . . . . Propulsion 10 | 2 . . 1 6 1 Treads 4 | . . . . 4 . Leg 4 | 2 . . 1 . 1 Wheel . | . . . . . . Hover 2 | . . . . 2 . Flight . | . . . . . . Utility 8 | . 3 . 1 1 3 Device 1 | . . . . 1 . Storage 4 | . 3 . . . 1 Processor 1 | . . . . . 1 Hackware 1 | . . . . . 1 Protection 1 | . . . 1 . . Artifact . | . . . . . . Weapon 13 | 3 1 . 3 1 5 Energy Gun 8 | 3 1 . 1 . 3 Energy Cannon . | . . . . . . Ballistic Gun 3 | . . . 2 . 1 Ballistic Cannon 1 | . . . . . 1 Launcher 1 | . . . . 1 . Special Weapon . | . . . . . . Impact Weapon . | . . . . . . Slashing Weapon . | . . . . . . Piercing Weapon . | . . . . . . Special Melee Weapon . | . . . . . . Unidentified Prototypes 3 | . . . . 2 1 Parts Lost 20 | . 1 . 7 1 11 Power 3 | . . . 2 . 1 Propulsion 6 | . . . 3 . 3 Utility 2 | . . . 1 . 1 Weapon 9 | . 1 . 1 1 6 Highest Loss Streak 10 | . 1 . 3 1 10 To Critical Strikes . | . . . . . . Average Slot Usage (%) 80 | . 98 100 72 73 84 Engine 9 | . 14 14 10 8 7 Treads 16 | . . . . 24 32 Leg 9 | . 28 28 18 . . Device 5 | . . . . 9 7 Storage 15 | . 27 28 17 11 9 Energy Gun 12 | . 27 28 17 7 1 Ballistic Gun 7 | . . . 4 11 11 Ballistic Cannon 1 | . . . . . 6 Launcher 1 | . . . . 1 3 Naked Turns . | . . . . . . Heaviest Build 106 | 9 19 17 17 26 106 Greatest Support 80 | 20 20 20 30 80 80 Greatest Overweight (x) 27 | . . . 4 6 27 Average Overweight (x) . | . . . . . . Largest Inventory Capacity 25 | 5 8 8 8 8 25 Average Capacity 10 | 5 7 8 8 8 21 Most Carried 9 | 5 8 8 8 8 9 Average Carried 6 | 3 6 8 7 6 7 Final Capacity 25 | 5 8 8 8 8 25 Final Carried 8 | 5 8 8 8 7 6 Class Distribution -------------------- 82% | Mutant 8% | Scavenger-Gunner 5% | Scavenger-Mutant 3% | Gunner Dominant Class ---------------- Mutant | -10/Materials Mutant | -10/Mines Mutant | -9/Materials Mutant | -9/Storage Scavenger-Gunner | -8/Materials Resources | -11 -10 -10 -9 -9 -8 ----------- Run | Yrd Mat Min Mat Sto Mat Matter Collected 759 | 260 181 . 47 119 152 Remotely . | . . . . . . Salvage Created 726 | . 142 . 204 106 274 Parts 41 | . 8 . 18 3 12 Haulers Intercepted . | . . . . . . Recyclers Shooed . | . . . . . . Parts Field Recycled . | . . . . . . Retrieved Matter . | . . . . . . Parts Self-Destructed . | . . . . . . Prevented . | . . . . . . Kills | -11 -10 -10 -9 -9 -8 ------- Run | Yrd Mat Min Mat Sto Mat Combat Hostiles Destroyed 21 | . 5 . 5 4 7 Guns 14 | . 5 . 5 1 3 Cannons 3 | . . . . . 3 AOE 3 | . . . . 3 . Classes Destroyed 6 | . 2 . 1 1 2 Drone 1 | . . . . 1 . Swarmer 6 | . 3 . 2 1 . Grunt 9 | . 2 . . 3 4 Sentry 3 | . . . 3 . . Specialist 2 | . . . . . 2 Hunter 1 | . . . . . 1 Best Kill Streak 3 | . 3 . 2 3 2 Combat Bots Only 3 | . 3 . 2 3 2 Max Kills in Single Turn 4 | . 2 . 1 4 1 Gunslinging 1 | . 1 . . . . Exploded 3 | . . . . 3 . Melee . | . . . . . . Uniques/NPCs Destroyed . | . . . . . . Combat | -11 -10 -10 -9 -9 -8 -------- Run | Yrd Mat Min Mat Sto Mat Hostile Shots Fired 297 | . 51 . 52 19 175 Missed 105 | . 19 . 16 6 64 Damage Taken 2877 | . 336 . 507 279 1755 Core 775 | . 64 . 79 40 592 Absorbed by Shields . | . . . . . . Core Remaining (%) 81 | 100 . 74 . 70 . Volleys Fired 61 | . 11 . 14 4 32 Largest 3 | . 2 . 2 2 3 Hottest 96 | . 90 . 90 73 96 Shots Fired 124 | . 22 . 28 7 67 Gun 103 | . 22 . 28 6 47 Cannon 20 | . . . . . 20 Launcher 1 | . . . . 1 . Special . | . . . . . . Kinetic 55 | . . . 4 4 47 Thermal 51 | . 11 . 18 2 20 Explosive 1 | . . . . 1 . Electromagnetic 17 | . 11 . 6 . . Robot Hit Streak 11 | . 4 . 11 1 10 Robot Miss Streak 4 | . 4 . 3 3 4 Penetration Max . | . . . . . . Secondary Targets 2 | . 2 . . . . Max Gunslinging Chain 1 | . 1 . . . . Shots Hit Robots 75 | . 10 . 17 2 46 Core Hits 37 | . 7 . 8 5 17 Critical Kills . | . . . . . . Critical Parts Destroyed . | . . . . . . Critical Strikes 9 | . 3 . 2 . 4 Burn 8 | . 2 . 2 . 4 Corrupt 1 | . 1 . . . . Melee Attacks . | . . . . . . Impact . | . . . . . . Slashing . | . . . . . . Piercing . | . . . . . . Sneak Attacks . | . . . . . . Combat Hostiles . | . . . . . . Follow-up Attacks . | . . . . . . Damage Inflicted 1423 | . 163 . 199 316 745 Guns 817 | . 163 . 199 27 428 Cannons 317 | . . . . . 317 Explosions 289 | . . . . 289 . Melee . | . . . . . . Ramming . | . . . . . . Kinetic 546 | . . . 17 17 512 Thermal 454 | . 62 . 149 10 233 Explosive 289 | . . . . 289 . Electromagnetic 134 | . 101 . 33 . . Impact . | . . . . . . Slashing . | . . . . . . Piercing . | . . . . . . Highest Corruption . | . . . . . . Average Corruption . | . . . . . . Corruption Purged . | . . . . . . Corruption Blocked . | . . . . . . Overload Shots . | . . . . . . Overflow Damage . | . . . . . . Projectiles . | . . . . . . Explosions . | . . . . . . Melee . | . . . . . . Knockbacks 1 | . . . . . 1 Impact . | . . . . . . Kinetic 1 | . . . . . 1 Secondary . | . . . . . . Self-Inflicted Damage 136 | . . . . 136 . Shots 3 | . . . . 3 . Rammed 1 | . . . . 1 . Targets Rammed 1 | . . . . 1 . Kicked . | . . . . . . Crushed . | . . . . . . Highest Temperature 276 | . 276 . 169 6 138 Average Temperature 78 | . 127 . 54 3 65 Received Heat Transfer 627 | . 132 . 162 72 261 Siege Activations . | . . . . . . Robots Corrupted . | . . . . . . Combat Hostiles . | . . . . . . Parts Fried . | . . . . . . Impact Corruptions . | . . . . . . Robots Melted 1 | . . . . . 1 Combat Hostiles 1 | . . . . . 1 Parts Melted 5 | . 1 . 1 . 3 Heat Transferred 1816 | . 333 . 544 74 865 Parts Sabotaged . | . . . . . . Parts Stolen . | . . . . . . Parts Stripped . | . . . . . . Power Chain Reactions . | . . . . . . Alert | -11 -10 -10 -9 -9 -8 ------- Run | Yrd Mat Min Mat Sto Mat Peak Influence 665 | . 125 48 106 665 305 Initial 217 | . . 48 18 12 217 Average 133 | . 59 48 58 189 213 Maximum Alert Level 2 | . . . . 2 1 Low Security (%) 72 | 100 100 100 100 70 20 Level 1 21 | . . . . 14 79 Level 2 5 | . . . . 15 . Level 3 . | . . . . . . Level 4 . | . . . . . . Level 5 . | . . . . . . High Security . | . . . . . . Max Security . | . . . . . . Squads Dispatched 11 | . 1 . . 6 4 Investigation 2 | . . . . 2 . Extermination . | . . . . . . Reinforcement 4 | . 1 . . 1 2 Assault . | . . . . . . Garrison 5 | . . . . 3 2 Intercept . | . . . . . . Searches Triggered . | . . . . . . Construction Impeded . | . . . . . . Haulers Reinforced . | . . . . . . Active Scanning Responses . | . . . . . . Cargo Convoy Interrupts . | . . . . . . Stealth | -11 -10 -10 -9 -9 -8 --------- Run | Yrd Mat Min Mat Sto Mat Distress Signals 1 | . . . . 1 . Communications Jammed . | . . . . . . Distress Signals . | . . . . . . Times Spotted 50 | . 5 . 7 25 13 Peak Tracking Total 4 | . 3 . 3 4 4 Tactical Retreats 3 | . . . . 2 1 Traps | -11 -10 -10 -9 -9 -8 ------- Run | Yrd Mat Min Mat Sto Mat Traps Triggered 3 | . . . 1 2 . Indirectly . | . . . . . . Trap Hack Attempts . | . . . . . . Triggered . | . . . . . . Disarmed . | . . . . . . Reprogrammed . | . . . . . . Reused . | . . . . . . Traps Extracted . | . . . . . . Installed . | . . . . . . Triggered . | . . . . . . Machines | -11 -10 -10 -9 -9 -8 ---------- Run | Yrd Mat Min Mat Sto Mat Machines Disabled 7 | . . . . 7 . Max in Single Turn 2 | . . . . 2 . Machines Repaired . | . . . . . . Machines Dismantled . | . . . . . . Machines Sabotaged . | . . . . . . Overloaded Fab Kills . | . . . . . . Hacking | -11 -10 -10 -9 -9 -8 --------- Run | Yrd Mat Min Mat Sto Mat Machines Accessed 1 | . . . . 1 . Terminals 1 | . . . . 1 . Fabricators . | . . . . . . Repair Stations . | . . . . . . Recycling Units . | . . . . . . Scanalyzers . | . . . . . . Garrison Access . | . . . . . . Total Hacks 1 | . . . . 1 . Successful 1 | . . . . 1 . Failed . | . . . . . . Catastrophic . | . . . . . . Database Lockouts . | . . . . . . Manual . | . . . . . . Terminals 1 | . . . . 1 . Fabricators . | . . . . . . Repair Stations . | . . . . . . Recycling Units . | . . . . . . Scanalyzers . | . . . . . . Garrison Access . | . . . . . . Terminal Hacks 1 | . . . . 1 . Record 1 | . . . . 1 . Fabricator Hacks . | . . . . . . Repair Station Hacks . | . . . . . . Recycling Unit Hacks . | . . . . . . Scanalyzer . | . . . . . . Garrison Access Hacks . | . . . . . . Unauthorized Hacks . | . . . . . . Terminals . | . . . . . . Fabricators . | . . . . . . Repair Stations . | . . . . . . Recycling Units . | . . . . . . Scanalyzers . | . . . . . . Garrison Access . | . . . . . . Data Cores Recovered . | . . . . . . Used . | . . . . . . Hacking Detections 1 | . . . . 1 . Full Trace Events . | . . . . . . Feedback Events . | . . . . . . Feedback Blocked . | . . . . . . Robot Schematics Acquired . | . . . . . . Robots Built . | . . . . . . Authchips . | . . . . . . Time . | . . . . . . Total Robot Build Rating . | . . . . . . Part Schematics Acquired . | . . . . . . Parts Built . | . . . . . . Authchips . | . . . . . . Time . | . . . . . . Total Part Build Rating . | . . . . . . Parts Repaired . | . . . . . . Time . | . . . . . . Parts Recycled . | . . . . . . Recycled Matter . | . . . . . . Retrieved Matter . | . . . . . . Retrieved Components . | . . . . . . Parts Scanalyzed . | . . . . . . Part Schematics Acquired . | . . . . . . Parts Damaged . | . . . . . . Bothacking | -11 -10 -10 -9 -9 -8 ------------ Run | Yrd Mat Min Mat Sto Mat Used RIF Installer . | . . . . . . Robots Hacked . | . . . . . . Non-combat . | . . . . . . Combat . | . . . . . . Robot Hacks Applied . | . . . . . . Relay Couplers Released . | . . . . . . Fabnet Peak Effective % . | . . . . . . Robots Rewired . | . . . . . . Allies Hacked . | . . . . . . Hacks Repelled . | . . . . . . Allies | -11 -10 -10 -9 -9 -8 -------- Run | Yrd Mat Min Mat Sto Mat Total Allies 1 | . . . . 1 . Largest Group 1 | . . . . 1 . Highest-Rated Group 100 | . . . . 100 . Highest-Rated Ally 100 | . . . . 100 . Total Orders . | . . . . . . Ally Attacks 49 | . . . . 49 . Total Damage 1276 | . . . . 1276 . Kills 19 | . . . . 19 . Allies Corrupted . | . . . . . . Allies Melted . | . . . . . . Intel | -11 -10 -10 -9 -9 -8 ------- Run | Yrd Mat Min Mat Sto Mat Robot Analysis Total . | . . . . . . Derelict Logs Recovered . | . . . . . . Drone Launches 3 | . . . . 3 . Drone Recoveries 2 | . . . . 2 . Exploration | -11 -10 -10 -9 -9 -8 ------------- Run | Yrd Mat Min Mat Sto Mat Turns Passed 2368 | 150 323 112 452 827 504 Spaces Moved 1387 | 124 233 94 280 477 179 Core 97 | 20 . . 11 65 1 Treads 586 | . . . . 410 176 Legs 702 | 104 233 94 269 . 2 Wheels . | . . . . . . Hover 2 | . . . . 2 . Flight . | . . . . . . Fastest Speed 50 | 50 120 120 120 160 160 Average Speed 152 | 108 120 120 141 166 224 Slowest Speed 1400 | 120 120 120 250 350 1400 Overloaded Moves . | . . . . . . Propulsion Burnouts . | . . . . . . Robots Hopped . | . . . . . . Cave-ins Triggered . | . . . . . . Exploration Rate (%) 26 | 6 35 22 19 52 22 Regions Visited 5 Branch Regions 2 Pre-discovered Areas 1 | . . 1 . . . Known Exits Taken . | . . . . . . Unknown Exits Taken 5 | 1 1 1 1 1 . Scrap Searched . | . . . . . . Spaces Dug . | . . . . . . Terrain Destroyed 33 | . . . . 30 3 Melee . | . . . . . . Projectile 3 | . . . . . 3 AOE 30 | . . . . 30 . Terrain Rammed . | . . . . . . Walls Destroyed . | . . . . . . Machines Disabled . | . . . . . . Actions | -11 -10 -10 -9 -9 -8 --------- Run | Yrd Mat Min Mat Sto Mat Total 1530 | 139 254 93 310 502 232 Wait . | . . . . . . Move 1382 | 123 232 93 279 476 179 Hop . | . . . . . . Pick Up 34 | 9 6 . 4 7 8 Fast Attach 6 | 1 1 . 3 1 . Attach 25 | 5 2 . 3 8 7 Detach 3 | 1 . . . 2 . Swap 7 | . 1 . 2 1 3 Drop 11 | . 1 . 5 2 3 Fire 61 | . 11 . 14 4 32 Melee . | . . . . . . Ram 1 | . . . . 1 . Kick . | . . . . . . Crush . | . . . . . . Escape Stasis . | . . . . . . Rewire . | . . . . . . Trap . | . . . . . . Miscellaneous . | . . . . . . Route ------- -11/Scrapyard -10/Materials -10/Mines -9/Materials -9/Storage -8/Materials History --------- Turn | Location | Event 5 | -11/Scrapyard | Discovered new exit (range 14) 151 | -11/Scrapyard | Entered Materials 307 | -10/Materials | Build established: Mutant 341 | -10/Materials | Discovered new exit (range 13) 474 | -10/Materials | Entered Mines 491 | -10/Mines | Discovered new exit (range 15) 504 | -10/Mines | Learned location of Storage (-9) 586 | -10/Mines | Entered Materials 586 | -9/Materials | Evolved 2 slots: Propulsion x2 989 | -9/Materials | Discovered new exit (range 5) 1038 | -9/Materials | Entered Storage 1047 | -9/Storage | Lost 3 parts (1p1n1u) 1072 | -9/Storage | Met 01-MTF 1623 | -9/Storage | Garrison activated, responded to threat 1833 | -9/Storage | Discovered new exit (range 16) 1865 | -9/Storage | Entered Materials 1865 | -8/Materials | Accompanied by 1 ally (01-MTF) 1865 | -8/Materials | Evolved 2 slots: Utility x1, Weapon x1 1870 | -8/Materials | 01-MTF left 1966 | -8/Materials | Met 7R-MNS 2242 | -8/Materials | Garrison activated, responded to threat 2328 | -8/Materials | Core integrity fell below 50% 2352 | -8/Materials | Core integrity fell below 20% 2369 | -8/Materials | Destroyed by H-61 Shepherd with Heavy Assault Cannon Last Messages --------------- G-47 Trooper suffers critical hit (Burn). K-01 Serf collects debris. K-01 Serf destroyed. K-01 Serf collects debris. U-05 Engineer builds a Wall. K-01 Serf collects debris. G-47 Trooper heat spikes uncontrollably. U-05 Engineer destroyed. G-47 Trooper overheating. X-57 Shotgunner suffers critical hit (Burn). VSS Leg melted. X-57 Shotgunner destroyed. K-01 Serf collects debris. G-47 Trooper heat spikes uncontrollably. G-47 Trooper overheating. K-01 Serf collects debris. G-47 Trooper overheating. K-01 Serf collects debris. G-47 Trooper overheating. K-01 Serf collects debris. Map ----- +----------------------------------------------------+ | ????????????????????????????????????????#!! #????? | | ????????????????????????????????????????#%= #????? | | ????????????????????????????????????????#! #????? | | ?????????????????????????????######?????# #????? | | ????????????????????????????##!!!!##????# #????? | | ????????????????????????????#! !#????# #????? | | ?????????????????????######## ##???# ###### | | ?????????????????##### ## =###### | | ?????????????????#!! ! ! = [ [ | | ?????????????????#!! =!% %== | | ?????????????????#[ !%! !* %[ | | ?????????????????#[[ ###+######%* ! " | | ?????????????????#]] ## ## ???#= " | | ?????????????????#]] ## ##? ??# " | | ?????????????########## #? "" ?# | | ????????????# + #? " " ## % * | | ????????????# # ## "" ## #### | | ????????????# # ##[ ## #??# ! | | ????????????# # ########### #??# !! | | ????????????# # # / T #??# #??# #"" | | ????????????# ]! # # #??# #??# #"" | | ????????????# ] # # """ #??# #??# ### | | ????????????# # %+ """ #??# #??# #?? | | ????????????########### %# """ #??# #??# #?? | | ????????????????????###=! # #??# ???# #?? | | ???????????????####""#;=%@########??# ???# #?? | | ???????? *H=k!*% #??# #?? | | ???????? !!%%%kk #??# #?? | | ???????? [=|=g%=% #??# #?? | | ?????????####### #####/############ ???# ??? | | ???????????????# ????%*!??????????????????# ??? | | ???????????????# ????? %%??????????????????#?????? | | ???????????????#?????? ????????????????????????? | | ????????????????????? ????????????????????????? | | ?????????????????????" " ????????????????????????? | | ?????????????????????"G" ????????????????????????? | | ???????????????????? " ????????????????????????? | | ???????????????????? ?????????????????????????? | | ???????????????????????#?????????????????????????? | | ?????????????????????????????????????????????????? | | ?????????????????????????????????????????????????? | | ?????????????????????????????????????????????????? | | ?????????????????????????????????????????????????? | | ?????????????????????????????????????????????????? | | ?????????????????????????????????????????????????? | | ?????????????????????????????????????????????????? | | ?????????????????????????????????????????????????? | | ?????????????????????????????????????????????????? | | ?????????????????????????????????????????????????? | | ?????????????????????????????????????????????????? | +----------------------------------------------------+ Best States ------------- Heat Dissipation 31 Energy Generation 14 Energy Capacity 280 Matter Stores 450 Matter Capacity 450 Sight Range 16 Terrain Scan Density 10 Armor Coverage 150 Evasion (%) 55 Targeting Accuracy 5 Recoil Reduction 4 Offensive Hacking 10 Item Schematics ----------------- None Robot Schematics ------------------ None Fabricated ------------ Nothing Alien Tech Used ----------------- None Achievements -------------- Backstab Troublemaker Challenges ------------ None Game ------ Seed AerolevScanTriangulator Manual? 0 Play Time 00:32:09 Cumulative 1.8 hours Start 2024.04.12 @ 02:14:19 End 2024.04.12 @ 02:48:02 Sessions 1 Manual Loads 0 Difficulty Rogue Special Mode None Game No. 6 Rogue 6 Adventurer 0 Explorer 0 Win Type - Total 0 Types 0/0/0/0/0/0/0/0/0 Lore% 0 Gallery% 4 Achievement% 3 Wizard Run 0 Options --------- Layout 1 ASCII 0 Keyboard 0 Movement Arrows Keybinds 0 Fullscreen 1 Font 24/Smallcaps Map View 50x35 Zoom Use 0% Tactical HUD 0 Map Filters NONE Filters NONE Steam 1 RUN: 0cbe5d23-4310-492d-b368-a8e463f36289